Workbook

Sheet Budsjett
C1: Budsjett Baderom Kjeller
C3: Isopor | D3: = | E3: =H4*82 -> 984 | J3: Ferdig gulv: | K3: =SUM(E3,E5,E6,E7,E8,E9,E16,) -> 12884
C4: Avløp | D4: = | E4: 2000 | G4: Antall m2 gulv= | H4: 12
C5: Armering | D5: = | E5: 900
C6: Varmekabel | D6: = | E6: 2000
C7: Støp | D7: = | E7: 3000 | K7: Røropplegg: | L7: PEX rør | M7: = | N7: 1500
C8: Membran | D8: = | E8: 800 | G8: Antall m2 vegg= | H8: 30 | L8: Veggbokser | M8: = | N8: 1000
C9: Gulvfliser | D9: = | E9: =H4*350 -> 4200 | L9: Braketter | M9: = | N9: 300
C10: Røropplegg | D10: = | E10: =N16 -> 6000 | L10: Vannskap | M10: = | N10: 1500
C11: Toalett | D11: = | E11: 1700 | L11: Klammer | M11: = | N11: 300
C12: Dusj | D12: = | E12: 1800 | L12: Gjennomføring | M12: = | N12: 400
C13: Elektrisk | D13: = | E13: 3000 | L13: Fordeler | M13: = | N13: 1000
C14: Servant | D14: = | E14: 5000 | M14: =
C15: Veggplater | D15: = | E15: =H8*350 -> 10500 | M15: =
C16: Lekter | D16: = | E16: 1000 | L16: Totalt | N16: =SUM(N7:N13) -> 6000
C17: Takpanel | D17: = | E17: =H4*320 -> 3840
C18: Spotter | D18: = | E18: =H4*200 -> 2400
C19: Skap | D19: = | E19: 3000
C20: Badekar | D20: = | E20: 8000
C22: Total | D22: = | E22: =SUM(E3:E20) -> 60124

Sheet Resultat
C1: Resultat Baderom Kjeller
B2: Innkjøpt
B3: V | C3: Isopor | D3: = | E3: 1050 | J3: Ferdig gulv: | K3: =SUM(E3,E4,E5,E6,E7,E8,E9,) -> 14693
B4: V | C4: Avløp | D4: = | E4: 3500 | G4: Antall m2 gulv= | H4: 12
B5: V | C5: Armering | D5: = | E5: 900
B6: V | C6: Varmekabel | D6: = | E6: 1400
B7: V | C7: Støp | D7: = | E7: 1800 | K7: Røropplegg: | L7: PEX rør | M7: = | N7: 900
B8: V | C8: Membran | D8: = | E8: 1200 | G8: Antall m2 vegg= | H8: 30 | L8: Veggbokser | M8: = | N8: 1300
B9: V | C9: Gulvfliser/lim/fugemasse | D9: = | E9: =4376+189+278 -> 4843 | L9: Braketter | M9: = | N9: 0
B10: V | C10: Røropplegg | D10: = | E10: =N16 -> 5412 | L10: Vannskap | M10: = | N10: 0
B11: V | C11: Toalett | D11: = | E11: 2000 | L11: Klammer | M11: = | N11: 0
B12: V | C12: Dusj | D12: = | E12: 3000 | L12: Gjennomføring | M12: = | N12: 0
B13: V | C13: Elektrisk | D13: = | E13: =N28 -> 5291 | L13: Fordeler | M13: = | N13: =1100+300 -> 1400
B14: V | C14: Servant/skap | D14: = | E14: =3200+329+1300 -> 4829 | L14: Rørdeler | M14: = | N14: =518+744+550 -> 1812
C15: Veggplater | D15: = | E15: 12300 | M15: =
B16: V | C16: Reisverk/lekter | D16: = | E16: =750+595+230 -> 1575 | L16: Totalt | N16: =SUM(N7:N14) -> 5412
B17: V | C17: Våtromsplater | D17: = | E17: 200
B18: V | C18: Takpanel | D18: = | E18: 1187
B19: V | C19: Spotter | D19: = | E19: =1954+300 -> 2254 | K19: Elektrisk: | L19: Kabler | M19: = | N19: 2150
B20: V | C20: Isolasjon | D20: = | E20: =438+219 -> 657 | L20: Bryter/dimmer | M20: = | N20: =800+545 -> 1345
B21: V | C21: Badekar | D21: = | E21: 5000 | L21: Bokser | M21: = | N21: 238
B22: V | C22: Maling | D22: = | E22: 578 | L22: Sikringskap | M22: = | N22: 0
C23: Total | D23: = | E23: =SUM(E3:E22) -> 58976 | L23: Kontakter | M23: = | N23: 0
L24: Termostat | M24: = | N24: 0
L25: K-rør | M25: = | N25: 200
L26: Lamper | M26: = | N26: 1358
M27: =
L28: Totalt | N28: =SUM(N19:N26) -> 5291

Sheet Ark2

Sheet Ark3
